bitfinex-derivatives/quotes_ETHF0:USTF0_20250410
["timestamp","ask_amount","ask_price","bid_price","bid_amount"]
[1744272599048,1.7503,1597.4,1597.3,1.25246]
[1744272599248,1.7503,1597.4,1597.3,10.45625942]
[1744272601553,3.349,1597.4,1597.3,10.45625942]
[1744272602348,2.02521,1597.4,1597.3,10.45625942]
[1744272602647,1.7429,1597.5,1597.4,1.25238]
[1744272602843,1.7429,1597.5,1597.4,7.82908]
[1744272603245,1.7429,1597.5,1597.4,13.82507942]
[1744272606551,1.5933,1597.7,1597.6,1.25222]
[1744272606756,1.5933,1597.7,1597.6,4.46002]
[1744272607057,1.6626,1597.8,1597.7,1.25214]
[1744272607355,1.6626,1597.8,1597.7,12.19813942]
[1744272607748,1.6626,1597.8,1597.7,52.99813942]
[1744272608055,1.6626,1597.8,1597.7,48.04813942]
[1744272610051,1.5933,1598.1,1598.0,1.25191]
[1744272610258,1.5933,1598.1,1598.0,4.45971]
[1744272610458,6.5933,1598.1,1598.0,4.45971]
[1744272611459,8.2183,1598.1,1598.0,4.45971]
[1744272611659,8.2183,1598.1,1598.0,1.25191]
[1744272612451,8.2183,1598.1,1598.0,4.45971]
[1744272612650,8.2183,1598.1,1598.0,1.25191]
[1744272612852,1.25191,1598.0,1597.9,0.00941029]
[1744272613050,1.93397637,1598.0,1597.7,7.24810942]
[1744272613255,0.30904184,1597.9,1597.8,1.25207]
[1744272613451,1.56106184,1597.9,1597.8,42.05207]
[1744272613657,8.18606184,1597.9,1597.8,1.25207]
[1744272613857,8.18606184,1597.9,1597.7,5.99599942]
[1744272614059,1.6197,1597.8,1597.7,7.24813942]
[1744272616169,1.6197,1597.8,1597.7,12.18713942]
[1744272618054,1.6197,1597.8,1597.7,13.88413942]
[1744272618955,1.6197,1597.8,1597.7,54.68413942]
[1744272619457,1.6197,1597.8,1597.7,52.98713942]
[1744272621167,2.87177,1597.8,1597.7,52.98713942]
[1744272621362,2.87177,1597.8,1597.7,51.73499942]
[1744272621562,3.18154883,1597.8,1597.7,46.79599942]
[1744272623067,1.92947883,1597.8,1597.7,48.04813942]
[1744272623271,1.92947883,1597.8,1597.7,7.24813942]
[1744272623661,1.92947883,1597.8,1597.7,1.25214]
[1744272624257,1.25214,1597.7,1597.6,0.00941029]
[1744272624465,1.25232,1597.5,1597.3,7.24842942]
[1744272624662,0.30987788,1597.4,1597.3,42.05243]
[1744272624865,1.98757788,1597.4,1597.3,42.05243]
[1744272625071,3.23995788,1597.4,1597.3,42.05243]
[1744272625475,3.23995788,1597.4,1597.3,1.25243]
[1744272625868,3.23995788,1597.4,1597.2,45.26968029]
[1744272626068,3.65137788,1597.3,1597.2,45.26968029]
[1744272626263,4.90383788,1597.3,1597.2,0.00941029]
[1744272626661,3.65137788,1597.3,1597.2,1.26195029]
[1744272627067,3.6510776,1597.3,1597.2,1.26195029]
[1744272627270,3.3415,1597.3,1597.2,1.26195029]
[1744272629578,3.3415,1597.3,1597.2,7.25794971]
[1744272629772,4.59396,1597.3,1597.2,6.00540971]
[1744272630374,4.90312858,1597.3,1597.2,6.00540971]
[1744272630580,4.90312629,1597.3,1597.2,6.00540971]
[1744272631076,4.59396,1597.3,1597.2,6.00540971]
[1744272631277,3.3415,1597.3,1597.2,7.25794971]
[1744272631480,3.3415,1597.3,1597.2,6.00540971]
[1744272631782,4.59396,1597.3,1597.2,6.00540971]
[1744272634583,3.3415,1597.3,1597.2,7.25794971]
[1744272634779,3.3415,1597.3,1597.2,13.82644971]
[1744272635081,1.6777,1597.3,1597.2,13.82644971]
[1744272635675,2.93016,1597.3,1597.2,13.82644971]
[1744272635878,2.93016,1597.3,1597.2,10.94540971]
[1744272636282,2.93016,1597.3,1597.2,6.00540971]
[1744272636977,3.23907044,1597.3,1597.2,6.00540971]
[1744272637787,2.93016,1597.3,1597.2,6.00540971]
[1744272638286,3.23902199,1597.3,1597.2,6.00540971]
[1744272640188,3.23906373,1597.3,1597.2,6.00540971]
[1744272640389,2.93016,1597.3,1597.2,6.00540971]
[1744272640686,2.93016,1597.3,1597.2,7.25794971]
[1744272640889,2.93016,1597.3,1597.2,6.00540971]
[1744272641089,1.6777,1597.3,1597.2,7.25794971]
[1744272641290,2.93016,1597.3,1597.2,2.86175029]
[1744272641887,1.6777,1597.3,1597.2,2.86175029]
[1744272642187,2.93016,1597.3,1597.2,2.86175029]
[1744272642886,2.93016,1597.3,1597.2,1.60921029]
[1744272643389,2.93016,1597.3,1597.2,2.86175029]
[1744272643889,2.93016,1597.3,1597.2,1.60921029]
[1744272644289,2.93016,1597.3,1597.2,2.86175029]
[1744272644999,6.39403977,1597.5,1597.2,1.60921029]
[1744272645192,9.33708977,1597.5,1597.4,1.25238]
[1744272645392,4.54245,1597.5,1597.4,1.25238]
[1744272646188,4.54245,1597.5,1597.4,2.89908]
[1744272646381,3.2901,1597.5,1597.4,2.89908]
[1744272646581,4.5424,1597.5,1597.4,2.89908]
[1744272646787,3.2901,1597.5,1597.4,2.89908]
[1744272646977,1.5994,1597.5,1597.4,2.89908]
[1744272647184,7.50061977,1597.6,1597.5,1.2523]
[1744272647385,9.50061123,1597.6,1597.5,2.899]
[1744272647587,9.19131977,1597.6,1597.5,2.899]
[1744272647793,9.19131977,1597.6,1597.5,6.1068]
[1744272648089,7.93903977,1597.6,1597.5,6.1068]
[1744272648787,4.79463977,1597.6,1597.5,6.1068]
[1744272649188,6.36363977,1597.6,1597.5,6.1068]
[1744272649492,4.79463977,1597.6,1597.5,6.1068]
[1744272649789,4.79463977,1597.6,1597.5,12.10279942]
[1744272649989,4.79463977,1597.6,1597.5,17.10279942]
[1744272651485,6.18283977,1597.9,1597.8,1.25207]
[1744272651790,6.18283977,1597.9,1597.8,9.38787]
[1744272652199,4.79463977,1597.9,1597.8,17.06336942]
[1744272654590,8.97972977,1597.9,1597.8,14.13179942]
[1744272654795,9.28898524,1597.9,1597.8,14.13179942]
[1744272655092,9.28890414,1597.9,1597.8,9.20379942]
[1744272655288,1.25214,1597.8,1597.7,3.2078]
[1744272655489,1.87946359,1597.8,1597.6,5.99599942]
[1744272655697,2.82237,1597.8,1597.7,4.8989]
[1744272655994,1.87946383,1597.8,1597.7,4.8989]
[1744272656296,1.87945385,1597.8,1597.7,4.8989]
[1744272656495,1.5703,1597.8,1597.7,4.8989]
[1744272656996,1.3628,1597.9,1597.7,4.8989]
[1744272657292,1.3628,1597.9,1597.8,2.93317]
[1744272657595,1.3628,1597.9,1597.8,7.86017]
[1744272658296,0.00941029,1598.0,1597.9,1.25199]
[1744272658498,0.00941029,1598.0,1597.9,6.14089]
[1744272658803,0.00941029,1598.0,1597.9,12.13688942]
[1744272661900,2.95102029,1598.0,1597.9,5.99599942]
[1744272662205,1.25207,1597.8,1597.7,5.99599942]
[1744272663100,8.13111488,1597.8,1597.7,5.99599942]
[1744272663699,1.25214,1597.7,1597.6,3.2078]
[1744272663897,3.13118488,1597.7,1597.6,3.2078]
[1744272664098,8.13118488,1597.7,1597.6,3.2078]
[1744272666200,8.1314602,1597.7,1597.6,3.2078]
[1744272666500,3.1314602,1597.7,1597.6,3.2078]
[1744272666702,1.8793202,1597.7,1597.6,4.46002]
[1744272666898,2.8426,1597.9,1597.8,1.25207]
[1744272667100,3.15177442,1597.9,1597.8,1.25207]
[1744272667307,2.8426,1597.9,1597.8,1.25207]
[1744272667516,2.8426,1597.9,1597.8,2.81307]
[1744272667710,4.3903,1597.9,1597.8,2.81307]
[1744272668811,0.00941029,1598.0,1597.9,1.25199]
[1744272669002,0.00941029,1598.0,1597.9,2.92289]
[1744272669307,1.69131029,1598.0,1597.9,2.92289]
[1744272670299,0.00941029,1598.0,1597.9,2.92289]
[1744272670702,0.00941029,1598.0,1597.9,6.73548942]
[1744272671406,1.69131029,1598.0,1597.9,6.73548942]
[1744272673100,3.25291081,1598.0,1597.9,5.06458942]
[1744272673303,4.61841081,1598.0,1597.9,5.06458942]
[1744272675208,3.36669144,1598.0,1597.9,5.06458942]
[1744272676712,4.68449144,1598.0,1597.9,5.06458942]
[1744272678013,4.68449144,1598.0,1597.9,6.69858942]
[1744272679118,4.68449144,1598.0,1597.9,5.06458942]
[1744272680317,5.93640144,1598.0,1597.9,5.06458942]
[1744272680518,4.68458909,1598.0,1597.9,5.06458942]
[1744272681018,4.68458909,1598.0,1597.9,11.60058942]
[1744272681214,1.32721029,1598.0,1597.9,11.60058942]
[1744272682921,2.88907829,1598.0,1597.9,9.97858942]
[1744272683122,4.48267829,1598.0,1597.9,3.81259942]
[1744272683915,12.69047829,1598.0,1597.9,3.81259942]
[1744272684130,1.25225,1597.6,1597.4,1.7022]
[1744272684419,1.2523,1597.5,1597.4,1.25234]
[1744272684720,1.56210417,1597.5,1597.4,1.25234]
[1744272686422,1.25238,1597.4,1597.3,12.1584]
[1744272686627,3.25970736,1597.4,1597.3,10.4562]
[1744272686823,5.60908,1597.4,1597.3,4.4602]
[1744272687025,5.60908,1597.4,1597.2,2.91879029]
[1744272687225,1.5614,1597.3,1597.2,2.91879029]
[1744272688225,1.3422,1597.4,1597.3,1.25246]
[1744272688427,2.81369,1597.6,1597.5,1.2523]
[1744272688629,3.12320911,1597.6,1597.5,1.2523]
[1744272688831,1.87091911,1597.6,1597.5,1.2523]
[1744272689123,2.659,1597.7,1597.6,1.25222]
[1744272689331,4.52995557,1597.7,1597.6,2.90912]
[1744272689922,2.9036,1597.7,1597.6,2.90912]
[1744272690119,1.3422,1597.7,1597.6,2.90912]
[1744272690325,2.90394629,1597.7,1597.6,1.6569]
[1744272690530,4.53244629,1597.7,1597.6,1.6569]
[1744272691132,4.53244188,1597.7,1597.6,1.6569]
[1744272691335,1.25222,1597.6,1597.5,10.45604]
[1744272691528,2.88072,1597.6,1597.5,12.00394]
[1744272691833,3.19034358,1597.6,1597.5,9.2038]
[1744272692337,8.19034358,1597.6,1597.5,9.2038]
[1744272692634,8.19034358,1597.6,1597.5,5.996]
[1744272693433,11.39814358,1597.6,1597.2,0.00941029]
[1744272693638,1.25246,1597.3,1597.2,0.00941029]
[1744272693835,1.56208358,1597.3,1597.2,0.00941029]
[1744272694032,4.76988358,1597.3,1597.2,0.00941029]
[1744272694238,4.76959204,1597.3,1597.2,0.00941029]
[1744272694438,6.45069204,1597.3,1597.2,0.00941029]
[1744272694936,11.45069204,1597.3,1597.2,0.00941029]
[1744272695133,11.45069204,1597.3,1596.9,15.75943611]
[1744272695134,1.25269,1597.0,1596.9,9.76343611]
[1744272695328,1.56202204,1597.0,1596.9,9.76343611]
[1744272695732,4.53142204,1597.0,1596.9,9.76343611]
[1744272696531,1.6811,1597.0,1596.9,11.01620611]
[1744272696839,0.00941029,1597.1,1596.9,15.82555611]
[1744272697038,2.94759,1597.0,1596.9,11.36503611]
[1744272697537,2.94759,1597.0,1596.9,14.57283611]
[1744272697737,2.94759,1597.0,1596.9,11.36503611]
[1744272698235,2.94759,1597.0,1596.9,12.97123611]
[1744272698539,1.25277,1596.9,1596.8,0.00941029]
[1744272698839,4.27907,1596.9,1596.8,0.00941029]
[1744272710946,7.48687,1596.9,1596.8,0.00941029]
[1744272711247,7.79530408,1596.9,1596.8,0.00941029]
[1744272711737,4.58750408,1596.9,1596.8,0.00941029]
[1744272711937,4.27907,1596.9,1596.8,0.00941029]
[1744272713841,4.58832342,1596.9,1596.8,0.00941029]
[1744272714444,5.94732342,1596.9,1596.8,0.00941029]
[1744272714748,10.85332342,1596.9,1596.8,0.00941029]
[1744272715345,10.85339762,1596.9,1596.8,0.00941029]
[1744272718251,5.94739762,1596.9,1596.8,0.00941029]
[1744272719847,1.25316,1596.4,1596.3,5.996]
[1744272720044,1.25324,1596.3,1596.2,3.2078]
[1744272720245,5.88646025,1596.3,1596.2,3.2078]
[1744272720946,5.88646025,1596.3,1596.1,3.05521029]
[1744272720947,4.63322025,1596.3,1596.1,3.05521029]
[1744272721152,1.56304025,1596.2,1596.1,0.00941029]
[1744272721452,3.18990154,1596.2,1596.1,0.00941029]
[1744272722645,3.18990154,1596.2,1596.1,1.66871029]
[1744272723351,3.18990154,1596.2,1596.1,2.92211029]
[1744272723554,3.18990154,1596.2,1596.1,1.66871029]
[1744272723858,0.31018154,1596.2,1596.1,2.92211029]
[1744272724352,0.31018154,1596.2,1596.1,4.26231029]
[1744272724555,5.834,1596.4,1596.3,1.25324]
[1744272724847,6.14407995,1596.4,1596.3,4.46104]
[1744272725958,7.39723995,1596.4,1596.3,4.46104]
[1744272726148,1.25324,1596.3,1596.2,1.6983]
[1744272726347,1.25332,1596.2,1596.1,1.26279029]
[1744272726547,2.66932,1596.2,1596.1,1.26279029]
[1744272726755,1.72611176,1596.2,1596.1,2.82199029]
[1744272727050,3.2078,1596.6,1596.1,9.77641029]
[1744272727250,1.25332,1596.2,1596.1,0.00941029]
[1744272727450,1.56343355,1596.2,1596.1,0.00941029]
[1744272729058,1.56327295,1596.2,1596.1,0.00941029]
[1744272731653,1.56327295,1596.2,1596.1,1.26281029]
[1744272731853,1.56327295,1596.2,1596.1,0.00941029]
[1744272732460,0.30995295,1596.2,1596.1,1.26281029]
[1744272732661,1.56327295,1596.2,1596.1,1.26281029]
[1744272733560,1.56302468,1596.2,1596.1,1.26281029]
[1744272733769,4.77082468,1596.2,1596.1,0.00941029]
[1744272734662,6.44002468,1596.2,1596.1,0.00941029]
[1744272735561,11.43996056,1596.2,1596.1,0.00941029]
[1744272735761,1.25364,1595.8,1595.7,40.8]
[1744272736164,1.56328657,1595.8,1595.7,40.8]
[1744272736461,1.25371,1595.7,1595.6,1.25379]
[1744272736667,1.25371,1595.7,1595.5,4.5161]
[1744272736668,1.25379,1595.6,1595.5,4.5161]
[1744272736859,1.25379,1595.6,1595.5,4.52551029]
[1744272737062,1.25379,1595.6,1595.5,50.32551029]
[1744272737361,1.25379,1595.6,1595.5,45.32551029]
[1744272737565,1.25379,1595.6,1595.5,0.00941029]
[1744272737763,3.00141581,1595.6,1595.5,0.00941029]
[1744272737963,4.68961581,1595.6,1595.5,0.00941029]
[1744272738372,4.68961581,1595.6,1595.5,3.21721029]
[1744272738564,4.68961581,1595.6,1595.5,1.58591029]
[1744272739074,4.38019,1595.6,1595.5,1.58591029]
[1744272739671,1.25374,1595.7,1595.6,1.25378]
[1744272739965,1.563014,1595.7,1595.6,1.25379]
[1744272740156,1.25374,1595.7,1595.6,3.2078]
[1744272740359,1.25374,1595.7,1595.6,4.7756]
[1744272740566,1.25374,1595.7,1595.6,6.02939]
[1744272740965,1.25374,1595.7,1595.6,4.7756]
[1744272741164,1.25374,1595.7,1595.6,2.82159]
[1744272741466,3.12411029,1595.8,1595.6,2.82158]
[1744272741671,1.25371,1595.7,1595.6,1.25378]
[1744272743165,0.00941029,1595.8,1595.7,1.25371]
[1744272743374,0.00941029,1595.8,1595.7,7.24971]
[1744272744375,0.00941029,1595.8,1595.7,12.24971]
[1744272745663,0.00941029,1595.8,1595.7,7.24971]
[1744272752884,4.77886308,1596.4,1596.3,1.25324]
[1744272753178,7.18406128,1596.5,1596.4,1.25316]
[1744272753677,7.18406128,1596.5,1596.4,43.02356]
[1744272758290,0.95661029,1596.6,1596.5,1.25309]
[1744272758589,0.95661029,1596.6,1596.5,12.05649]
[1744272759685,0.00941029,1596.6,1596.5,12.05649]
[1744272760795,0.9734,1597.0,1596.9,1.25277]
[1744272760995,0.9734,1597.0,1596.9,4.46057]
[1744272761299,0.9734,1597.0,1596.9,45.26057]
[1744272761603,0.9734,1597.0,1596.9,46.82637]
[1744272762594,0.00941029,1597.1,1597.0,1.25269]
[1744272762902,0.00941029,1597.1,1597.0,2.81849]
[1744272763100,1.25269,1597.0,1596.9,45.26052]
[1744272763297,2.26389,1597.0,1596.9,3.2078]
[1744272763509,3.89959,1597.0,1596.9,4.46057]
[1744272763796,2.6469,1597.0,1596.9,4.46057]
[1744272764192,3.89959,1597.0,1596.9,3.2078]
[1744272765405,3.89966,1597.0,1596.8,48.04882]
[1744272765704,3.85737,1596.9,1596.8,46.796]
[1744272766002,1.25309,1596.5,1596.4,10.90041029]
[1744272766304,1.25309,1596.5,1596.4,0.00941029]
[1744272766603,1.5472,1596.7,1596.5,1.25305]
[1744272766790,2.5161,1596.6,1596.5,1.25305]
[1744272766997,3.76911,1596.6,1596.5,1.25305]
[1744272767402,3.76916,1596.6,1596.4,2.86210029]
[1744272767599,1.5472,1596.5,1596.4,2.86210029]
[1744272767806,2.5665,1596.5,1596.4,2.86210029]
[1744272769104,3.81959,1596.5,1596.4,2.86210029]
[1744272769296,3.81959,1596.5,1596.4,0.00941029]
[1744272769603,7.02739,1596.5,1596.4,0.00941029]
[1744272769803,3.81959,1596.5,1596.4,0.00941029]
[1744272769997,3.81959,1596.5,1596.4,3.21721029]
[1744272770192,8.81959,1596.5,1596.4,0.00941029]
[1744272770394,8.81959,1596.5,1596.3,3.2078]
[1744272770395,1.25316,1596.4,1596.3,3.2078]
[1744272770595,1.25324,1596.3,1596.2,5.996]
[1744272771002,1.25324,1596.3,1596.2,9.2038]
[1744272772105,1.25324,1596.3,1596.2,10.45712]
[1744272772501,2.83801,1596.4,1596.3,1.25324]
[1744272773301,1.5848,1596.4,1596.3,1.25324]
[1744272773606,2.5586,1596.4,1596.3,2.84634]
[1744272775902,16.14996128,1597.0,1596.5,1.25309]
[1744272775903,7.18406128,1597.0,1596.5,1.25309]
[1744272776207,3.94317,1596.9,1596.8,3.2078]
[1744272776911,3.94317,1596.9,1596.8,4.46065]
[1744272779612,3.94317,1596.9,1596.8,3.2078]
[1744272780407,3.94317,1596.9,1596.8,4.46065]
[1744272780713,2.6904,1596.9,1596.8,4.46065]
[1744272781012,1.0138,1596.9,1596.8,4.46065]
[1744272781213,2.26657,1596.9,1596.8,4.46065]
[1744272781416,3.93267,1596.9,1596.8,4.46065]
[1744272781712,3.93267,1596.9,1596.8,3.2078]
[1744272782110,2.6799,1596.9,1596.8,4.46065]
[1744272782314,3.93267,1596.9,1596.8,3.2078]
[1744272782513,4.2430124,1596.9,1596.8,3.2078]
[1744272782807,1.25293,1596.7,1596.6,9.2038]
[1744272783011,1.56320966,1596.7,1596.6,5.996]
[1744272783316,1.2532,1596.4,1596.3,1.25324]
[1744272783507,1.25324,1596.3,1596.2,10.45706]
[1744272783708,2.26214,1596.3,1596.2,10.45706]
[1744272784416,1.0089,1596.3,1596.2,10.45706]
[1744272784719,1.0089,1596.3,1596.2,12.00236]
[1744272784916,2.6523,1596.3,1596.2,12.00236]
[1744272786415,3.90554,1596.3,1596.2,10.7491]
[1744272786612,4.21569613,1596.3,1596.2,9.2038]
[1744272786915,4.21569613,1596.3,1596.2,5.996]
[1744272788919,2.6523,1596.3,1596.2,10.45712]
[1744272789215,1.006,1596.6,1596.4,1.25314]
[1744272789421,2.25907,1596.6,1596.4,4.4609]
[1744272789615,0.9216,1596.5,1596.4,4.4609]
[1744272789822,2.17469,1596.5,1596.4,44.0078]
[1744272790016,2.564,1596.5,1596.4,45.26096]
[1744272790212,2.17469,1596.5,1596.4,44.0078]
[1744272790520,3.81709,1596.5,1596.4,40.8]
[1744272790922,3.81709,1596.5,1596.4,42.05316]
[1744272791221,2.564,1596.5,1596.4,1.25316]
[1744272792123,3.81714,1596.5,1596.4,1.25316]
[1744272792619,2.17474,1596.5,1596.4,2.94396]
[1744272792920,2.48511784,1596.5,1596.4,3.2078]
[1744272793221,4.12711784,1596.5,1596.4,3.2078]
[1744272794124,1.25316,1596.4,1596.3,42.05322]
[1744272794313,1.25324,1596.3,1596.2,10.8946]
[1744272794512,1.25324,1596.3,1596.2,5.996]
[1744272794717,1.56381254,1596.3,1596.2,5.996]
[1744272794918,4.77161254,1596.3,1596.2,5.996]
[1744272795523,4.77161254,1596.3,1596.2,7.24932]
[1744272795721,4.77161254,1596.3,1596.2,8.93472]
[1744272796023,2.874,1596.4,1596.3,1.25324]
[1744272796225,3.18481432,1596.4,1596.3,2.93864]
[1744272796527,1.6208,1596.4,1596.3,2.93864]
[1744272796728,0.9216,1596.5,1596.4,1.25316]
[1744272797021,0.9216,1596.5,1596.4,12.09916]
[1744272797925,0.9216,1596.5,1596.4,16.97216]
[1744272799120,7.18406128,1596.7,1596.6,1.25301]
[1744272799424,7.18406128,1596.7,1596.6,10.45681]
[1744272800935,7.18406128,1596.7,1596.6,11.38711]
[1744272802933,7.18406128,1596.7,1596.6,11.40755047]
[1744272803431,1.5438,1596.9,1596.8,1.25285]
[1744272803632,1.5438,1596.9,1596.8,4.46065]
[1744272804025,1.5438,1596.9,1596.8,6.06349047]
[1744272805331,2.79657,1596.9,1596.8,6.06349047]
[1744272805826,2.79657,1596.9,1596.8,4.81064047]
[1744272806327,2.79657,1596.9,1596.8,6.06349047]
[1744272806726,2.79657,1596.9,1596.8,0.02044047]
[1744272807128,2.79657,1596.9,1596.8,1.27329047]
[1744272807531,2.79657,1596.9,1596.8,0.02044047]
[1744272807731,2.79657,1596.9,1596.8,1.27329047]
[1744272810236,3.10777955,1596.9,1596.8,0.02044047]
[1744272811336,8.10777955,1596.9,1596.8,0.02044047]
[1744272812829,3.10777955,1596.9,1596.8,0.02044047]
[1744272813034,3.10777955,1596.9,1596.8,1.27329047]
[1744272814236,3.10777955,1596.9,1596.8,0.02044047]
[1744272815633,3.10777955,1596.9,1596.8,1.27329047]
[1744272817137,3.10797535,1596.9,1596.8,1.27329047]
[1744272817428,3.10797535,1596.9,1596.8,0.02044047]
[1744272818935,1.85520535,1596.9,1596.8,1.27329047]
[1744272819938,3.10797535,1596.9,1596.8,1.27329047]
[1744272820634,1.85520535,1596.9,1596.8,4.48109047]
[1744272820834,0.9991,1597.0,1596.9,1.25277]
[1744272821139,0.9991,1597.0,1596.9,2.86921047]
[1744272822032,0.00941029,1597.1,1597.0,1.25269]
[1744272822335,0.00941029,1597.1,1597.0,10.92849]
[1744272822540,0.00941029,1597.1,1597.0,15.92849]
[1744272822738,0.00941029,1597.1,1597.0,56.72849]
[1744272822944,7.18406128,1597.2,1597.1,1.25262]
[1744272823133,7.18406128,1597.2,1597.1,2.84862]
[1744272823332,7.18406128,1597.2,1597.1,7.84862]
[1744272823840,8.84416128,1597.5,1597.4,1.25238]
[1744272824041,9.15581123,1597.5,1597.4,9.35262047]
[1744272824341,8.84416128,1597.5,1597.4,9.35262047]
[1744272824539,8.84416128,1597.5,1597.4,10.91782047]
[1744272825047,15.40795408,1597.5,1597.4,0.02044047]
[1744272826440,15.40808697,1597.5,1597.4,0.02044047]
[1744272826740,1.25246,1597.3,1597.2,3.2078]
[1744272826938,1.56408569,1597.3,1597.2,3.2078]
[1744272827341,2.48788569,1597.3,1597.2,3.2078]
[1744272827940,2.48788569,1597.3,1597.2,4.46034]
[1744272828547,2.48788569,1597.3,1597.2,3.2078]
[1744272829845,3.45388569,1597.3,1597.2,3.2078]
[1744272831645,3.45388569,1597.3,1597.2,4.46034]
[1744272831835,2.20142569,1597.3,1597.2,4.46034]
[1744272832236,3.78352569,1597.3,1597.2,4.46034]
[1744272832445,3.4719,1597.3,1597.2,4.46034]
[1744272833143,5.84341029,1597.6,1597.4,1.25232]
[1744272833348,2.97640738,1597.5,1597.4,4.46012]
[1744272834348,2.6649,1597.5,1597.4,4.46012]
[1744272835049,0.9949,1597.5,1597.4,4.46012]
[1744272835450,0.9949,1597.5,1597.4,6.02042]
[1744272836849,2.2472,1597.5,1597.4,6.02042]
[1744272837151,3.8186,1597.5,1597.4,6.02042]
[1744272840353,2.5663,1597.5,1597.4,6.02042]
[1744272841452,3.8186,1597.5,1597.4,6.02042]
[1744272841652,3.8186,1597.5,1597.4,3.2078]
[1744272841849,1.25238,1597.4,1597.3,5.996]
[1744272842055,2.86338,1597.4,1597.3,5.996]
[1744272842751,3.17498683,1597.4,1597.3,5.996]
[1744272843446,3.17498683,1597.4,1597.3,7.24846]
[1744272843648,3.17498683,1597.4,1597.3,5.996]
[1744272844356,3.17498683,1597.4,1597.3,9.2038]
[1744272844656,3.17498683,1597.4,1597.3,10.45626]
[1744272846457,1.611,1597.4,1597.3,10.45626]
[1744272846758,1.611,1597.4,1597.3,4.46026]
[1744272847462,0.9949,1597.5,1597.4,1.25238]
[1744272847659,2.2472,1597.5,1597.4,2.83438]
[1744272847860,0.9949,1597.5,1597.4,2.83438]
[1744272848060,2.6799,1597.5,1597.4,2.83438]
[1744272848253,2.99199691,1597.5,1597.4,2.83438]
[1744272848454,2.6799,1597.5,1597.4,2.83438]
[1744272848656,0.9949,1597.5,1597.4,2.83438]
[1744272849358,0.00941029,1597.6,1597.5,1.2523]
[1744272849555,0.00941029,1597.6,1597.5,6.0946]
[1744272850065,7.18406128,1597.7,1597.6,1.25222]
[1744272850255,7.23709364,1597.9,1597.8,1.25207]
[1744272850455,7.23709364,1597.9,1597.8,15.31487]
[1744272850854,7.23709364,1597.9,1597.8,16.94937]
[1744272851056,8.78489364,1597.9,1597.8,16.94937]
[1744272852657,7.23709364,1597.9,1597.8,16.94937]
[1744272854062,2.51551029,1598.0,1597.9,1.25199]
[1744272854266,2.51551029,1598.0,1597.9,2.94109]
[1744272854866,0.00941029,1598.0,1597.9,2.94109]
[1744272857167,1.61581029,1598.0,1597.9,2.94109]
[1744272858165,0.00941029,1598.0,1597.9,2.94109]
[1744272858668,0.00941029,1598.0,1597.9,8.93709]
[1744272866771,1.69831029,1598.0,1597.9,8.93709]
[1744272868675,0.00941029,1598.0,1597.9,8.93709]
[1744272870377,0.00941029,1598.0,1597.9,7.24799]
[1744272870577,2.41041029,1598.0,1597.9,7.24799]
[1744272870980,2.41041029,1598.0,1597.9,8.81239]
[1744272875483,3.9743374,1598.0,1597.9,5.996]
[1744272875791,1.25199,1597.9,1597.8,4.859]
[1744272876085,3.20450838,1597.9,1597.8,1.25207]
[1744272876586,1.95251838,1597.9,1597.8,1.25207]
[1744272876783,3.20450838,1597.9,1597.8,1.25207]
[1744272877084,1.25222,1597.6,1597.5,5.996]
[1744272877281,1.2523,1597.5,1597.4,3.2078]
[1744272877588,1.25238,1597.4,1597.3,9.76343611]
[1744272877786,1.56439838,1597.4,1597.3,9.76343611]
[1744272877978,11.41269838,1597.4,1597.3,9.76343611]
[1744272878185,11.41269838,1597.4,1597.3,7.20483611]
[1744272878379,16.25869838,1597.4,1597.3,3.11562524]
[1744272878590,16.25869838,1597.4,1597.3,1.83632524]
[1744272878786,11.41269838,1597.4,1597.3,1.83632524]
[1744272879480,8.20489838,1597.4,1597.3,3.08878524]
[1744272879681,3.20489838,1597.4,1597.3,1.83632524]
[1744272879883,1.95251838,1597.4,1597.0,4.85571029]
[1744272880191,1.87181838,1597.3,1597.0,8.06421029]
[1744272880390,1.5598,1597.2,1597.0,8.06421029]
[1744272880584,1.5598,1597.2,1597.0,9.70271029]
[1744272882595,1.5598,1597.2,1597.0,8.06421029]
[1744272882794,1.6207,1597.1,1597.0,8.06421029]
[1744272883390,1.6207,1597.1,1597.0,9.61041029]
[1744272884092,1.6207,1597.1,1597.0,4.76341029]
[1744272884403,1.6207,1597.1,1597.0,3.21721029]
[1744272885100,1.5598,1597.2,1597.0,3.21721029]
[1744272885392,1.5598,1597.2,1597.1,1.5782]
[1744272885693,1.5598,1597.2,1597.0,4.02641029]
[1744272885889,1.5598,1597.2,1597.0,3.21721029]
[1744272886097,1.25262,1597.1,1597.0,4.46990029]
[1744272886594,2.81237,1597.2,1597.1,1.25262]
[1744272887094,1.25262,1597.1,1597.0,6.04806029]
[1744272887294,1.6859,1597.1,1597.0,6.04806029]
[1744272888099,2.93852,1597.1,1597.0,0.00941029]
[1744272888391,2.93852,1597.1,1596.5,8.47942914]
[1744272888392,1.25293,1596.7,1596.6,3.2078]
[1744272888596,1.25309,1596.5,1596.4,5.996]
[1744272888896,1.25309,1596.5,1596.3,9.29802]
[1744272888897,1.25314,1596.5,1596.3,9.29802]
[1744272889197,1.6903,1596.4,1596.3,50.09802]
[1744272889695,1.6903,1596.4,1596.3,45.26102]
[1744272893396,2.94346,1596.4,1596.3,45.26102]
[1744272893595,3.76756,1596.4,1596.3,44.0078]
[1744272894097,3.76756,1596.4,1596.3,3.2078]
[1744272897900,3.76756,1596.4,1596.3,4.46104]
[1744272898098,3.76756,1596.4,1596.3,1.25324]
[1744272898500,3.76756,1596.4,1596.3,4.46104]
[1744272898800,2.5144,1596.4,1596.3,4.46104]
[1744272900103,0.00941029,1596.5,1596.4,1.25316]
[1744272900403,0.00941029,1596.5,1596.4,7.24916]
[1744272900599,0.00941029,1596.5,1596.4,8.01796]
[1744272900997,1.25316,1596.4,1596.3,4.46099]
[1744272901197,2.362,1596.4,1596.3,4.46099]
[1744272901596,3.61516,1596.4,1596.2,0.00941029]
[1744272901906,1.5367,1596.3,1596.2,1.26273029]